bitfinex-derivatives/quotes_BNBF0:USTF0_20230901
["timestamp","ask_amount","ask_price","bid_price","bid_amount"]
[1693583100650,5.97723438,213.86,213.85,59.82006813]
[1693583104153,0.85996302,213.86,213.85,59.82006813]
[1693583104550,0.85996302,213.87,213.85,59.82006813]
[1693583104750,0.85996302,213.86,213.85,59.82006813]
[1693583105151,0.85996302,213.87,213.85,59.82006813]
[1693583105354,0.85996302,213.86,213.85,59.82006813]
[1693583105746,0.85996302,213.87,213.85,59.82006813]
[1693583105950,0.85996302,213.86,213.85,59.82006813]
[1693583106348,0.85996302,213.87,213.85,59.82006813]
[1693583107057,8.02105637,213.87,213.85,59.82006813]
[1693583107249,0.85996302,213.86,213.85,59.82006813]
[1693583114453,0.85996302,213.89,213.85,59.82006813]
[1693583114657,0.85996302,213.88,213.85,54.69694785]
[1693583114851,0.85996302,213.89,213.85,54.69694785]
[1693583115058,10.21045474,213.86,213.85,54.69694785]
[1693583115259,11.07041776,213.86,213.85,54.69694785]
[1693583117159,8.01000948,213.86,213.85,54.69694785]
[1693583118762,0.85996302,213.86,213.85,54.69694785]
[1693583119559,0.85996302,213.86,213.85,53.67223123]
[1693583121960,0.85996302,213.87,213.85,53.67223123]
[1693583122366,5.09862795,213.86,213.85,53.67223123]
[1693583122665,5.95859097,213.86,213.85,53.67223123]
[1693583126767,0.85996302,213.86,213.85,48.54868284]
[1693583127268,4.4267301,213.86,213.85,48.54868284]
[1693583138376,0.85996302,213.86,213.85,48.54868284]
[1693583138569,0.85996302,213.87,213.85,48.54868284]
[1693583138770,0.85996302,213.86,213.85,48.54868284]
[1693583139276,0.85996302,213.87,213.85,48.54868284]
[1693583139679,0.85996302,213.87,213.85,47.52395078]
[1693583141779,5.95859097,213.87,213.85,47.52395078]
[1693583141980,0.85996302,213.86,213.85,47.52395078]
[1693583142278,5.95859097,213.86,213.85,47.52395078]
[1693583145377,0.85996302,213.86,213.85,47.52395078]
[1693583146277,7.15004646,213.86,213.85,47.52395078]
[1693583146582,8.01000948,213.86,213.85,47.52395078]
[1693583147781,0.85996302,213.86,213.85,47.52395078]
[1693583148380,0.85996302,214.01,213.85,47.52395078]
[1693583148581,0.23422662,214.0,213.85,47.52395078]
[1693583148780,0.85996302,213.99,213.85,47.52395078]
[1693583148982,0.23422662,213.98,213.85,47.52395078]
[1693583149181,0.85996302,213.97,213.85,47.52395078]
[1693583149377,0.23422662,213.96,213.85,47.52395078]
[1693583149580,0.85996302,213.95,213.85,47.52395078]
[1693583149783,0.23422662,213.94,213.85,42.40020504]
[1693583149983,0.85996302,213.93,213.85,42.40020504]
[1693583150186,0.23422662,213.92,213.85,42.40020504]
[1693583150386,0.85996302,213.91,213.85,42.40020504]
[1693583150589,0.23422662,213.9,213.85,42.40020504]
[1693583150787,0.85996302,213.89,213.85,42.40020504]
[1693583150986,10.2374769,213.87,213.85,42.40020504]
[1693583151186,0.85996302,213.86,213.85,42.40020504]
[1693583152986,11.09743992,213.86,213.85,42.40020504]
[1693583154686,11.09743992,213.86,213.85,41.5393964]
[1693583155186,11.09636371,213.86,213.85,41.5393964]
[1693583157584,0.85996302,213.86,213.85,41.5393964]
[1693583159690,0.85996302,213.86,213.85,40.5142462]
[1693583161587,11.0702934,213.86,213.85,40.5142462]
[1693583161995,11.0702934,213.86,213.85,36.46282159]
[1693583162590,18.21471332,213.86,213.85,36.46282159]
[1693583163492,8.00438294,213.86,213.85,36.46282159]
[1693583163795,4.43050655,213.86,213.85,36.46282159]
[1693583164096,0.85996302,213.86,213.85,36.46282159]
[1693583164694,4.43050655,213.86,213.85,36.46282159]
[1693583165093,0.85996302,213.86,213.85,36.46282159]
[1693583165894,4.43050655,213.86,213.85,36.46282159]
[1693583166390,0.85996302,213.86,213.85,36.46282159]
[1693583166995,4.43050655,213.86,213.85,36.46282159]
[1693583167696,0.85996302,213.86,213.85,36.46282159]
[1693583172799,5.96073949,213.86,213.85,36.46282159]
[1693583176201,0.85996302,213.86,213.85,36.46282159]
[1693583178406,5.96073949,213.86,213.85,36.46282159]
[1693583186615,0.85996302,213.86,213.85,36.46282159]
[1693583187213,5.96463486,213.86,213.85,36.46282159]
[1693583187512,0.85996302,213.86,213.85,36.46282159]
[1693583187716,5.96484777,213.86,213.85,36.46282159]
[1693583190418,0.85996302,213.86,213.85,36.46282159]
[1693583190819,5.96474131,213.86,213.85,36.46282159]
[1693583192522,0.85996302,213.86,213.85,36.46282159]
[1693583193919,8.00438294,213.86,213.85,36.46282159]
[1693583195318,0.85996302,213.86,213.85,36.46282159]
[1693583206525,0.85996302,213.86,213.85,31.95571306]
[1693583218839,0.85996302,213.86,213.85,31.09486216]
[1693583223040,11.10142825,213.86,213.85,31.09486216]
[1693583225144,0.85996302,213.86,213.85,31.09486216]
[1693583225344,11.10147886,213.86,213.85,31.09486216]
[1693583229442,0.85996302,213.86,213.85,31.09486216]
[1693583254471,11.0699614,213.86,213.85,31.09486216]
[1693583262572,0.85996302,213.86,213.85,31.09486216]
[1693583269880,0.85996302,213.86,213.3,0.07621431]
[1693583270079,5.11247436,213.78,213.31,0.93729535]
[1693583270279,0.85996302,213.77,213.32,0.86108104]
[1693583270474,0.85996302,213.76,213.32,0.86108104]
[1693583270675,0.85996302,213.75,213.32,0.86108104]
[1693583270878,0.85996302,213.74,213.32,0.86108104]
[1693583271083,0.85996302,213.73,213.32,0.93729535]
[1693583271276,0.85996302,213.72,213.31,0.07621431]
[1693583271480,0.85996302,213.71,213.31,0.07621431]
[1693583271680,5.11247436,213.77,213.31,0.07621431]
[1693583271681,0.85996302,213.7,213.31,0.07621431]
[1693583271980,0.85996302,213.69,213.31,0.07621431]
[1693583272180,0.85996302,213.69,213.25,0.15242863]
[1693583272181,0.85996302,213.68,213.32,0.07621431]
[1693583272375,0.85996302,213.67,213.32,0.07621431]
[1693583272581,0.85996302,213.66,213.32,0.07621431]
[1693583272880,0.85996302,213.65,213.31,0.07621431]
[1693583273080,0.85996302,213.64,213.31,0.07621431]
[1693583273280,0.85996302,213.63,213.31,0.07621431]
[1693583273481,5.11247436,213.76,213.31,0.07621431]
[1693583273682,0.17221834,213.75,213.31,0.07621431]
[1693583273981,0.17221834,213.75,213.32,0.07621431]
[1693583274181,5.2846927,213.75,213.32,0.07621431]
[1693583274477,0.17221834,213.74,213.32,0.07621431]
[1693583274878,5.2846927,213.74,213.34,0.07621431]
[1693583275083,0.17221834,213.73,213.34,0.07621431]
[1693583275284,0.17221834,213.73,213.33,0.07621431]
[1693583282092,5.2846927,213.73,213.33,0.07621431]
[1693583282293,0.17221834,213.72,213.33,0.07621431]
[1693583286094,0.17221834,213.72,213.32,0.07621431]
[1693583289092,5.2846927,213.72,213.32,0.07621431]
[1693583289395,0.17221834,213.71,213.32,0.07621431]
[1693583289793,0.17221834,213.71,213.33,0.07621431]
[1693583290097,0.17221834,213.7,213.38,0.07621431]
[1693583290292,0.17221834,213.69,213.39,0.07621431]
[1693583290496,5.11247436,213.79,213.39,0.07621431]
[1693583290693,0.1721643,213.78,213.39,0.07621431]
[1693583290894,0.1721643,213.78,213.37,0.07621431]
[1693583291095,0.1721643,213.8,213.36,0.07621431]
[1693583291292,0.1721643,213.79,213.37,0.86081704]
[1693583291499,0.1721643,213.8,213.37,0.86081704]
[1693583291695,0.1721643,213.79,213.37,0.86081704]
[1693583291995,0.1721643,213.78,213.37,0.86081704]
[1693583292200,0.1721643,213.82,213.35,0.07621431]
[1693583292499,0.1721643,213.81,213.36,0.86082289]
[1693583292800,0.1721643,213.8,213.36,0.86082289]
[1693583293094,0.1721643,213.79,213.36,0.86082289]
[1693583293298,0.1721643,213.82,213.36,0.86082289]
[1693583293499,0.1721643,213.81,213.36,0.86082289]
[1693583293701,0.1721643,213.8,213.36,0.86082289]
[1693583293900,0.1721643,213.79,213.36,0.86082289]
[1693583294101,0.1721643,213.78,213.37,0.86082289]
[1693583294301,0.1721643,213.82,213.35,0.86082289]
[1693583294495,0.1721643,213.81,213.36,0.86082355]
[1693583294701,0.1721643,213.82,213.35,0.86082355]
[1693583294897,0.1721643,213.81,213.36,0.86082355]
[1693583295099,0.1721643,213.84,213.35,0.86082355]
[1693583295301,0.1721643,213.83,213.36,0.86082355]
[1693583295497,0.1721643,213.84,213.35,0.86082355]
[1693583295703,0.1721643,213.83,213.36,0.86082355]
[1693583295895,0.1721643,213.82,213.37,0.86082355]
[1693583296095,0.1721643,213.81,213.38,0.86082355]
[1693583296396,0.1721643,213.8,213.34,0.07621431]
[1693583296594,0.1721643,213.79,213.35,0.86080866]
[1693583296801,0.1721643,213.78,213.35,0.86080866]
[1693583297002,0.1721643,213.84,213.35,0.86080866]
[1693583297197,0.1721643,213.83,213.34,0.86080866]
[1693583297395,0.1721643,213.85,213.35,0.86080866]
[1693583297603,0.1721643,213.84,213.34,0.86080866]
[1693583297796,0.1721643,213.85,213.35,0.86080866]
[1693583298000,0.1721643,213.84,213.36,0.86080866]
[1693583298303,0.1721643,213.83,213.37,0.86080866]
[1693583298502,0.1721643,213.82,213.38,0.86080866]
[1693583298704,0.1721643,213.81,213.33,0.07621431]
[1693583298904,0.1721643,213.85,213.34,0.86080893]
[1693583299900,0.1721643,213.85,213.33,0.86080893]
[1693583300100,0.1721643,213.85,213.35,0.86080893]
[1693583300306,0.1721643,213.85,213.36,0.86080893]
[1693583300502,0.1721643,213.85,213.37,0.86080893]
[1693583300699,0.1721643,213.85,213.31,0.07621431]
[1693583300904,0.1721643,213.85,213.32,0.93704808]
[1693583301106,0.1721643,213.85,213.33,0.86083377]
[1693583301307,0.1721643,213.85,213.32,0.86083377]
[1693583301507,0.1721643,213.85,213.33,0.86083377]
[1693583301707,0.1721643,213.85,213.32,0.86083377]
[1693583301908,0.1721643,213.85,213.33,0.86083377]
[1693583302109,0.1721643,213.85,213.34,0.86083377]
[1693583302308,0.1721643,213.85,213.35,0.86083377]
[1693583302509,0.1721643,213.85,213.36,0.86083377]
[1693583302709,0.1721643,213.85,213.37,0.86083377]
[1693583302909,0.1721643,213.85,213.31,0.07621431]
[1693583303110,0.1721643,213.85,213.32,0.93706996]
[1693583303310,0.1721643,213.85,213.33,0.86085565]
[1693583304109,0.1721643,213.86,213.32,0.86085565]
[1693583304307,0.1721643,213.85,213.33,0.86085565]
[1693583304510,0.1721643,213.86,213.32,0.86085565]
[1693583304707,0.1721643,213.85,213.33,0.86085565]
[1693583304912,0.1721643,213.84,213.34,0.86085565]
[1693583305113,0.1721643,213.83,213.35,0.86085565]
[1693583305309,0.1721643,213.82,213.36,0.86085565]
[1693583305514,0.1721643,213.81,213.37,0.86085565]
[1693583305714,0.1721643,213.86,213.32,0.86085565]
[1693583306016,0.1721643,213.85,213.33,0.86084689]
[1693583306315,0.1721643,213.84,213.34,0.86084689]
[1693583306516,0.1721643,213.86,213.32,0.86084689]
[1693583306718,0.1721643,213.85,213.33,0.86084689]
[1693583307014,0.1721643,213.84,213.34,0.86084689]
[1693583307211,5.11247436,213.88,213.33,0.86084689]
[1693583307212,0.1721643,213.87,213.33,0.86084689]
[1693583307410,0.1721643,213.87,213.32,0.07621431]
[1693583307411,0.1721643,213.86,213.34,0.86084689]
[1693583307615,0.1721643,213.85,213.35,0.86084689]
[1693583307816,0.1721643,213.84,213.36,0.86084689]
[1693583308016,0.1721643,213.87,213.33,0.9370612]
[1693583308214,0.1721643,213.86,213.34,0.86084689]
[1693583308418,0.1721643,213.88,213.34,0.86084689]
[1693583308717,0.1721643,213.87,213.34,0.9370612]
[1693583308918,0.1721643,213.86,213.35,0.86084689]
[1693583309112,0.1721643,213.85,213.35,0.86084689]
[1693583309317,0.1721643,213.84,213.35,0.86084689]
[1693583309619,0.1721643,213.83,213.35,0.86084689]
[1693583309819,0.1721643,213.89,213.35,0.86084689]
[1693583310018,0.1721643,213.88,213.35,0.86084689]
[1693583310213,0.1721643,213.89,213.34,0.86084689]
[1693583310413,0.1721643,213.88,213.35,0.86084689]
[1693583310617,0.1721643,213.87,213.36,0.86084689]
[1693583310818,0.1721643,213.86,213.37,0.86084689]
[1693583311019,0.1721643,213.89,213.35,0.86084689]
[1693583311221,0.1721643,213.88,213.36,0.86084689]
[1693583311521,0.1721643,213.87,213.37,0.86084689]
[1693583311723,0.1721643,213.89,213.34,0.86084689]
[1693583312019,0.1721643,213.88,213.35,0.86084689]
[1693583312220,0.1721643,213.87,213.35,0.86084689]
[1693583312421,0.1721643,213.86,213.35,0.86084689]
[1693583312621,0.1721643,213.89,213.35,0.86084689]
[1693583312821,0.1721643,213.88,213.35,0.86084689]
[1693583313021,0.1721643,213.87,213.35,0.86084689]
[1693583313218,0.1721643,213.86,213.35,0.86084689]
[1693583313420,0.1721643,213.89,213.35,0.86084689]
[1693583313618,0.1721643,213.88,213.35,0.86084689]
[1693583313819,0.1721643,213.87,213.35,0.86084689]
[1693583314015,0.1721643,213.89,213.35,0.86084689]
[1693583314218,0.1721643,213.88,213.35,0.86084689]
[1693583314415,0.1721643,213.87,213.35,0.86084689]
[1693583314620,0.1721643,213.86,213.35,0.86084689]
[1693583314820,0.1721643,213.85,213.35,0.86084689]
[1693583315020,0.1721643,213.89,213.35,0.86084689]
[1693583315220,0.1721643,213.88,213.35,0.9370612]
[1693583315424,0.1721643,213.87,213.36,0.86084689]
[1693583315626,0.1721643,213.86,213.36,0.86084689]
[1693583315826,0.1721643,213.89,213.36,0.86084689]
[1693583316026,0.1721643,213.88,213.36,0.86084689]
[1693583316326,0.1721643,213.87,213.36,0.86084689]
[1693583316525,0.1721643,213.89,213.36,0.86084689]
[1693583316726,5.11247436,213.9,213.36,0.86084689]
[1693583316727,0.1721643,213.88,213.36,0.86084689]
[1693583316927,0.1721643,213.87,213.36,0.86084689]
[1693583317127,0.1721643,213.89,213.36,0.86084689]
[1693583317327,0.1721643,213.88,213.36,0.86084689]
[1693583317527,0.1721643,213.87,213.36,0.86084689]
[1693583317729,0.1721643,213.86,213.36,0.86084689]
[1693583317928,0.1721643,213.89,213.36,0.86084689]
[1693583318129,0.1721643,213.88,213.36,0.86084689]
[1693583318428,0.1721643,213.87,213.36,0.86084689]
[1693583318629,0.1721643,213.88,213.36,0.86084689]
[1693583318830,0.1721643,213.87,213.36,0.86084689]
[1693583319128,0.1721643,213.86,213.36,0.86084689]
[1693583319330,0.1721643,213.88,213.36,0.86084689]
[1693583319630,0.1721643,213.87,213.36,0.86084689]
[1693583319826,0.1721643,213.86,213.36,0.86084689]
[1693583320026,0.1721643,213.88,213.36,0.86084689]
[1693583320228,0.1721643,213.85,213.36,0.86084689]
[1693583320425,0.1721643,213.84,213.36,0.86084689]
[1693583320630,0.1721643,213.88,213.36,0.9370612]
[1693583320833,0.1721643,213.87,213.37,0.86084689]
[1693583321027,0.1721643,213.86,213.37,0.86084689]
[1693583321229,0.1721643,213.85,213.38,0.86084689]
[1693583321530,0.1721643,213.84,213.35,0.07594261]
[1693583321732,0.1721643,213.83,213.36,0.86084463]
[1693583321925,0.1721643,213.82,213.36,0.93678724]
[1693583322124,0.1721643,213.87,213.37,0.86084463]
[1693583322330,0.1721643,213.86,213.37,0.86084463]
[1693583322530,5.27629015,213.87,213.37,0.86084463]
[1693583322832,0.1721643,213.86,213.37,0.93678724]
[1693583323130,0.1721643,213.86,213.38,0.86084463]
[1693583323831,5.27629015,213.86,213.38,0.86084463]
[1693583324033,0.1721643,213.85,213.39,0.07594261]
[1693583324429,5.27629015,213.85,213.39,0.07594261]
[1693583324637,0.1721643,213.84,213.39,0.07594261]
[1693583324832,5.10412585,213.83,213.41,0.07594261]
[1693583325028,0.1721643,213.82,213.41,0.07594261]
[1693583334940,0.1721643,213.82,213.42,0.07594261]
[1693583336143,0.1721643,213.82,213.41,0.07594261]
[1693583337043,0.1721643,213.82,213.42,0.07594261]
[1693583337943,5.27629015,213.82,213.41,0.07594261]
[1693583338243,0.1721643,213.81,213.41,0.07594261]
[1693583341447,5.27629015,213.81,213.41,0.07594261]
[1693583341648,0.1721643,213.8,213.41,0.07594261]
[1693583343148,0.1721643,213.8,213.42,0.07594261]
[1693583343449,0.1721643,213.79,213.41,0.07594261]
[1693583343750,0.1721643,213.78,213.41,0.07594261]
[1693583343946,0.1721643,213.81,213.41,0.07594261]
[1693583344146,0.1721643,213.8,213.41,0.07594261]
[1693583344349,0.1721643,213.81,213.41,0.07594261]
[1693583344543,0.1721643,213.8,213.41,0.07594261]
[1693583344851,0.1721643,213.79,213.41,0.07594261]
[1693583345148,0.1721643,213.78,213.41,0.07594261]
[1693583345344,0.1721643,213.81,213.41,0.07594261]
[1693583345549,0.1721643,213.8,213.41,0.07594261]
[1693583345749,0.1721643,213.81,213.41,0.07594261]
[1693583345944,0.1721643,213.8,213.41,0.07594261]
[1693583346751,0.1721643,213.8,213.4,0.07594261]
[1693583357157,0.1721643,213.8,213.41,0.07594261]
[1693583357756,0.1721643,213.81,213.42,0.07594261]
[1693583357953,0.1721643,213.8,213.42,0.07594261]
[1693583358157,5.10412585,213.84,213.42,0.07594261]
[1693583358158,0.1721643,213.79,213.42,0.07594261]
[1693583358354,0.1721643,213.78,213.42,0.07594261]
[1693583358561,0.1721643,213.83,213.42,0.07594261]
[1693583358760,0.1721643,213.82,213.42,0.07594261]
[1693583358954,0.1721643,213.81,213.42,0.07594261]
[1693583359154,0.1721643,213.8,213.41,0.07594261]
[1693583359357,0.1721643,213.83,213.41,0.07594261]
[1693583359551,0.1721643,213.82,213.41,0.07594261]
[1693583359754,0.1721643,213.81,213.41,0.07594261]
[1693583359958,0.1721643,213.8,213.41,0.07594261]
[1693583360158,0.1721643,213.83,213.41,0.07594261]
[1693583360361,0.1721643,213.82,213.41,0.07594261]
[1693583360661,0.1721643,213.81,213.41,0.07594261]
[1693583360855,0.1721643,213.83,213.41,0.07594261]
[1693583361060,0.1721643,213.82,213.41,0.07594261]
[1693583361255,0.1721643,213.83,213.41,0.07594261]
[1693583361461,0.1721643,213.82,213.41,0.07594261]
[1693583361661,0.1721643,213.81,213.41,0.07594261]
[1693583361860,0.1721643,213.83,213.41,0.07594261]
[1693583362060,0.1721643,213.82,213.41,0.07594261]
[1693583362257,5.10412585,213.84,213.41,0.07594261]
[1693583362258,0.1721643,213.81,213.41,0.07594261]
[1693583362461,0.1721643,213.83,213.41,0.07594261]
[1693583362763,0.1721643,213.82,213.41,0.07594261]
[1693583362955,0.1721643,213.81,213.41,0.07594261]
[1693583363160,0.1721643,213.8,213.41,0.07594261]
[1693583363361,0.1721643,213.79,213.41,0.07594261]
[1693583363563,0.1721643,213.78,213.41,0.07594261]
[1693583363865,0.1721643,213.77,213.41,0.07594261]
[1693583364065,0.1721643,213.76,213.41,0.07594261]
[1693583364266,0.1721643,213.75,213.41,0.07594261]
[1693583364466,0.1721643,213.74,213.41,0.07594261]
[1693583364661,0.1721643,213.73,213.41,0.07594261]
[1693583364865,5.10412585,213.85,213.41,0.07594261]
[1693583365067,0.17214329,213.84,213.41,0.07594261]
[1693583366468,5.27626914,213.84,213.41,0.07594261]
[1693583366669,0.17214329,213.83,213.41,0.07594261]
[1693583372272,0.17214329,213.83,213.4,0.07594261]
[1693583377075,0.17214329,213.83,213.39,0.07594261]
[1693583377679,5.10412585,213.82,213.39,0.07594261]
[1693583377980,0.17214329,213.81,213.39,0.07594261]
[1693583384080,0.17214329,213.81,213.38,0.07594261]
[1693583384281,0.17214329,213.81,213.37,0.07594261]
[1693583384682,5.27626914,213.81,213.37,0.07594261]
[1693583384881,0.17214329,213.8,213.37,0.07594261]
[1693583387486,0.17214329,213.8,213.38,0.86081674]
[1693583387985,0.17214329,213.79,213.38,0.86081674]
[1693583388285,0.17214329,213.78,213.37,0.07594261]
[1693583388487,0.17214329,213.77,213.37,0.07594261]
[1693583388686,0.17214329,213.81,213.37,0.07594261]
[1693583388888,0.17214329,213.8,213.37,0.07594261]
[1693583389086,0.17214329,213.81,213.37,0.07594261]
[1693583389282,0.17214329,213.8,213.37,0.07594261]
[1693583389482,0.17214329,213.81,213.37,0.07594261]
[1693583389681,0.17214329,213.8,213.37,0.07594261]
[1693583389886,0.17214329,213.79,213.37,0.07594261]
[1693583390086,0.17214329,213.78,213.37,0.07594261]
[1693583390389,0.17214329,213.77,213.37,0.07594261]
[1693583390587,0.17214329,213.81,213.37,0.07594261]
[1693583390789,0.17214329,213.8,213.37,0.07594261]
[1693583391086,0.17214329,213.79,213.38,0.86082171]
[1693583391287,0.17214329,213.78,213.38,0.86082171]
[1693583391488,0.17214329,213.77,213.38,0.86082171]
[1693583391788,0.17214329,213.76,213.38,0.86082171]
[1693583391988,0.17214329,213.75,213.38,0.86082171]
[1693583392191,0.17214329,213.81,213.38,0.86082171]
[1693583392390,0.17214329,213.8,213.38,0.86082171]
[1693583392688,0.17214329,213.79,213.38,0.86082171]
[1693583392886,0.17214329,213.78,213.38,0.86082171]
[1693583393088,0.17214329,213.77,213.38,0.86082171]
[1693583393289,0.17214329,213.76,213.38,0.86082171]
[1693583393482,0.17214329,213.81,213.38,0.86082171]
[1693583393686,0.17214329,213.8,213.38,0.86082171]
[1693583393887,0.17214329,213.81,213.38,0.86082171]
[1693583394088,0.17214329,213.8,213.38,0.86082171]
[1693583394390,0.17214329,213.79,213.38,0.86082171]
[1693583394588,0.17214329,213.81,213.38,0.86082171]
[1693583394784,0.17214329,213.8,213.38,0.86082171]
[1693583394988,0.17214329,213.81,213.38,0.86082171]
[1693583395185,0.17214329,213.8,213.38,0.86082171]
[1693583395385,0.17214329,213.79,213.38,0.86082171]
[1693583395592,0.17214329,213.78,213.38,0.86082171]
[1693583395791,0.17214329,213.77,213.38,0.86082171]
[1693583395988,0.17214329,213.81,213.38,0.86082171]
[1693583396191,0.17214329,213.81,213.37,0.07594261]
[1693583396192,0.17214329,213.8,213.36,0.07594261]
[1693583396392,0.17214329,213.81,213.37,0.86082466]
[1693583396592,0.17214329,213.8,213.37,0.86082466]
[1693583396791,0.17214329,213.79,213.37,0.86082466]
[1693583396993,0.17214329,213.78,213.37,0.86082466]
[1693583397293,0.17214329,213.77,213.37,0.86082466]
[1693583397494,0.17214329,213.81,213.37,0.86082466]
[1693583397697,0.17214329,213.8,213.37,0.86082466]
[1693583397894,0.17214329,213.79,213.37,0.86082466]
[1693583398094,0.17214329,213.81,213.37,0.86082466]
[1693583398393,0.17214329,213.8,213.37,0.86082466]
[1693583398589,0.17214329,213.79,213.37,0.86082466]
[1693583398792,0.17214329,213.78,213.37,0.86082466]
[1693583398989,5.11372639,213.82,213.37,0.86082466]
[1693583399197,0.17214329,213.81,213.37,0.86082466]
[1693583401797,0.17214329,213.81,213.37,0.93668557]
[1693583402096,0.17214329,213.8,213.38,0.86082466]
[1693583402494,0.17214329,213.79,213.38,0.86082466]
[1693583402694,0.17214329,213.78,213.38,0.86082466]
[1693583402895,0.17214329,213.82,213.38,0.86082466]
[1693583403095,0.17214329,213.81,213.38,0.86082466]
[1693583403298,0.17214329,213.82,213.38,0.86082466]
[1693583403498,0.17214329,213.81,213.38,0.86082466]
[1693583403698,0.17214329,213.8,213.38,0.86082466]
[1693583403901,0.17214329,213.79,213.38,0.86082466]
[1693583404201,0.17214329,213.78,213.38,0.93668557]
[1693583404500,0.17214329,213.77,213.39,0.86082466]
[1693583404701,0.17214329,213.83,213.39,0.86082466]
[1693583404900,0.17214329,213.82,213.39,0.86082466]
[1693583405199,0.17214329,213.81,213.39,0.86082466]
[1693583405395,0.17214329,213.83,213.39,0.86082466]
[1693583405699,0.17214329,213.82,213.39,0.86082466]
[1693583406099,0.17214329,213.82,213.38,0.07586091]
[1693583406899,5.28586968,213.82,213.38,0.07586091]
[1693583407095,0.17214329,213.81,213.38,0.07586091]
[1693583408499,5.28586968,213.81,213.38,0.07586091]
[1693583408696,0.17214329,213.8,213.38,0.07586091]
[1693583410897,0.17214329,213.8,213.39,0.07586091]
[1693583412407,5.28586968,213.8,213.39,0.07586091]
[1693583412604,0.17214329,213.79,213.39,0.07586091]
[1693583413001,0.17214329,213.79,213.4,0.07586091]
[1693583413206,0.17214329,213.8,213.4,0.07586091]
[1693583413402,0.17214329,213.79,213.4,0.07586091]
[1693583413607,0.17214329,213.81,213.4,0.07586091]
[1693583413906,0.17214329,213.8,213.4,0.07586091]
[1693583414106,0.17214329,213.79,213.4,0.07586091]
[1693583414309,0.17214329,213.78,213.4,0.07586091]
[1693583414510,0.17214329,213.77,213.4,0.07586091]
[1693583414709,0.17214329,213.81,213.4,0.07586091]
[1693583415009,5.11372639,213.82,213.4,0.07586091]
[1693583415010,0.17214329,213.8,213.4,0.07586091]
[1693583415209,0.17214329,213.81,213.4,0.07586091]
[1693583415410,0.17214329,213.8,213.4,0.07586091]
[1693583415710,0.17214329,213.79,213.4,0.07586091]
[1693583415905,0.17214329,213.78,213.4,0.07586091]
[1693583416110,0.17214329,213.81,213.4,0.07586091]
[1693583416311,0.17214329,213.8,213.4,0.07586091]
[1693583418412,0.17214329,213.81,213.4,0.07586091]
[1693583418613,0.17214329,213.8,213.4,0.07586091]
[1693583418808,0.17214329,213.81,213.4,0.07586091]
[1693583419011,0.17214329,213.8,213.4,0.07586091]
[1693583419311,0.17214329,213.79,213.4,0.07586091]
[1693583419511,0.17214329,213.81,213.4,0.07586091]
[1693583419713,0.17214329,213.8,213.4,0.07586091]
[1693583419910,0.17214329,213.81,213.4,0.07586091]
[1693583420110,0.17214329,213.8,213.4,0.07586091]
[1693583420311,0.17214329,213.81,213.4,0.07586091]
[1693583420513,0.17214329,213.8,213.4,0.07586091]
[1693583420709,0.17214329,213.81,213.4,0.07586091]
[1693583420914,0.17214329,213.8,213.4,0.07586091]
[1693583421107,0.17214329,213.81,213.4,0.07586091]
[1693583421311,0.17214329,213.8,213.4,0.07586091]
[1693583421512,0.17214329,213.79,213.4,0.07586091]
[1693583421709,0.17214329,213.78,213.4,0.07586091]
[1693583421912,0.17214329,213.77,213.4,0.07586091]
[1693583422111,0.17214329,213.76,213.4,0.07586091]
[1693583422313,0.17214329,213.75,213.4,0.07586091]
[1693583422515,0.17214329,213.74,213.4,0.07586091]
[1693583422716,0.17214329,213.73,213.4,0.07586091]
[1693583422915,0.17214329,213.72,213.4,0.07586091]
[1693583423118,0.17214329,213.81,213.4,0.07586091]
[1693583423318,0.17214329,213.8,213.4,0.07586091]
[1693583423618,0.17214329,213.79,213.4,0.07586091]
[1693583423818,0.17214329,213.81,213.4,0.07586091]
[1693583424011,0.17214329,213.8,213.4,0.07586091]
[1693583424213,0.17214329,213.81,213.4,0.07586091]
[1693583424517,0.17214329,213.8,213.4,0.07586091]
[1693583424818,0.17214329,213.79,213.4,0.07586091]
[1693583425020,0.17214329,213.78,213.4,0.07586091]
[1693583425219,0.17214329,213.77,213.4,0.07586091]
[1693583425416,0.17214329,213.76,213.4,0.07586091]
[1693583425613,0.17214329,213.75,213.4,0.07586091]
[1693583425814,0.17214329,213.81,213.4,0.07586091]
[1693583426118,0.17214329,213.8,213.4,0.07586091]
[1693583426320,0.17214329,213.81,213.4,0.07586091]
[1693583426518,0.17214329,213.8,213.39,0.07586091]
[1693583426713,0.17214329,213.81,213.39,0.07586091]
[1693583426916,0.17214329,213.8,213.39,0.07586091]
[1693583427117,0.17214329,213.79,213.39,0.07586091]
[1693583427316,0.17214329,213.78,213.39,0.07586091]
[1693583427514,0.17214329,213.77,213.39,0.07586091]
[1693583427715,0.17214329,213.76,213.39,0.07586091]
[1693583427919,0.17214329,213.8,213.39,0.07586091]
[1693583434028,5.28586968,213.8,213.39,0.07586091]
[1693583434235,0.17214329,213.79,213.39,0.07586091]
[1693583434734,0.17214329,213.79,213.4,0.07586091]
[1693583437034,0.17214329,213.79,213.39,0.07586091]
[1693583437835,0.17214329,213.79,213.4,0.07586091]
[1693583438036,0.17214329,213.79,213.39,0.07586091]
[1693583445235,0.17214329,213.79,213.4,0.07586091]
[1693583445545,0.17214329,213.78,213.4,0.07586091]